Cogmind - Beta 14 @@@ ROGUE MODE // 2025.03.03 @ 19:00:54 Player: toydarian Result: Self-destructed Performance ------------- Evolutions (5) 2500 Regions Visited (17) 3400 Robots Destroyed (157) 785 Value Destroyed (5725) 5725 Prototype IDs (56) 1120 Alien Tech Used (0) 0 Bonus (2657) 2657 TOTAL SCORE: 16187 Bonus ------- Follower Combat Kills 236 Aligned with FarCom 300 Met Data Miner 300 Met Warlord at Base 500 MAIN.C Attacked Warlord 500 Warlord Defense Kills 1024 Friendly Fire -203 Cogmind --------- Core Integrity 316/1000 Matter 300/300 Energy 100/100 System Corruption 1% Temperature Cool (0) Movement Hovering (77) Location -5/Warlord Parts ------- > --- POWER (1) -------- (None) > --- PROPULSION (4) --- Combat Gravmag System Combat Gravmag System > --- UTILITY (7) ------ Large Storage Unit Advanced Signal Interpreter Makeshift Light Armor Plating System Mapper > --- WEAPON (5) ------- (None) > --- INVENTORY (15) --- Combat Gravmag System Flying Fortress v7 Matter Compressor (250) Improved Sensor Array Advanced Signal Interpreter Improved Energy Mantle Improved Hacking Suite Improved Hacking Suite Advanced Hacking Suite System Restoration Module Peak State ------------ > --- POWER ------------ Micro Fission Core > --- PROPULSION ------- Combat Gravmag System Combat Gravmag System Combat Gravmag System Combat Gravmag System > --- UTILITY ---------- Large Storage Unit Advanced Signal Interpreter Experimental Targeting Computer Makeshift Light Armor Plating Improved Energy Mantle Improved Hacking Suite System Mapper > --- WEAPON ----------- Autogun Flak Gun KE Penetrator Enhanced Coil Gun Makeshift Sword > --- INVENTORY -------- Light Nuclear Core Combat Gravmag System Combat Gravmag System Flying Fortress v7 Matter Compressor Improved Sensor Array Advanced Signal Interpreter Makeshift Light Armor Plating Improved Hacking Suite Improved Hacking Suite Advanced Hacking Suite [Rating: 100] Favorites ----------- Power Deuterium Engine Engine Deuterium Engine Power Core Fission Core Propulsion Improved Carbon-fiber Leg Treads Medium Treads Leg Improved Carbon-fiber Leg Wheel Armored Huge Wheel Hover Unit Combat Gravmag System Flight Unit Flying Fortress v7 Utility Large Storage Unit Device Improved Sensor Array Storage Large Storage Unit Processor Advanced Targeting Computer Hackware Improved Hacking Suite Protection Improved Medium Armor Plating Weapon Heavy Assault Rifle Energy Gun Medium Laser Ballistic Gun Heavy Assault Rifle Ballistic Cannon Gauss Cannon Launcher Heavy Rocket Launcher Slashing Weapon Makeshift Sword Special Melee Weapon Dirty Datajack Build | -11 -10 -10 -10 -9 -8 -7 -7 -7 -6 -6 -6 -6 -5 -5 -5 -5 -5 ------- Run | Yrd Mat Min Exi Min Mat Fac Low Low Fac Low Low Dat Pro Fac Upp Upp War Slots Evolved 10 | . . . . . 4 2 . . 2 . . . . 2 . . . Power . | . . . . . . . . . . . . . . . . . . Propulsion 2 | . . . . . . 2 . . . . . . . . . . . Utility 5 | . . . . . 2 . . . 2 . . . . 1 . . . Weapon 3 | . . . . . 2 . . . . . . . . 1 . . . Parts Attached 204 | 8 10 8 1 6 15 17 20 7 32 18 10 4 3 16 5 5 19 Power 18 | 1 1 1 . . 1 6 1 . 2 1 . . . 1 . 1 2 Engine 8 | 1 1 1 . . 1 2 1 . . . . . . 1 . . . Core 10 | . . . . . . 4 . . 2 1 . . . . . 1 2 Reactor . | . . . . . . . . . . . . . . . . . . Propulsion 42 | 3 5 4 1 1 2 4 3 2 4 4 2 1 1 4 . . 1 Treads 8 | . . 2 . 1 2 . 2 1 . . . . . . . . . Leg 14 | . . . . . . 4 1 . 4 4 . 1 . . . . . Wheel 13 | 3 5 2 1 . . . . 1 . . 1 . . . . . . Hover 5 | . . . . . . . . . . . . . . 4 . . 1 Flight 2 | . . . . . . . . . . . 1 . 1 . . . . Utility 66 | 2 2 2 . 1 5 5 3 2 8 6 3 1 2 6 3 3 12 Device 19 | 1 . 1 . . . 1 1 1 . 3 2 . 2 1 2 1 3 Storage 6 | 1 1 . . . . 1 . . 2 . . . . . . . 1 Processor 5 | . . . . . . 1 . . 1 . . . . . . 1 2 Hackware 5 | . . . . . . . . . 3 . . . . 1 . . 1 Protection 31 | . 1 1 . 1 5 2 2 1 2 3 1 1 . 4 1 1 5 Artifact . | . . . . . . . . . . . . . . . . . . Weapon 78 | 2 2 1 . 4 7 2 13 3 18 7 5 2 . 5 2 1 4 Energy Gun 2 | 2 . . . . . . . . . . . . . . . . . Energy Cannon . | . . . . . . . . . . . . . . . . . . Ballistic Gun 51 | . 2 1 . 2 7 2 7 3 11 4 3 . . 4 2 1 2 Ballistic Cannon 4 | . . . . . . . 2 . . . 1 . . . . . 1 Launcher 9 | . . . . 2 . . 4 . . 3 . . . . . . . Special Weapon . | . . . . . . . . . . . . . . . . . . Impact Weapon . | . . . . . . . . . . . . . . . . . . Slashing Weapon 11 | . . . . . . . . . 7 . 1 2 . 1 . . . Piercing Weapon . | . . . . . . . . . . . . . . . . . . Special Melee Weapon 1 | . . . . . . . . . . . . . . . . . 1 Unidentified Prototypes 8 | . . 1 . . . . . . . . . . . 1 . . 6 Parts Lost 51 | . 1 4 . . 1 . 8 1 7 6 7 . 1 1 1 1 12 Power 7 | . . . . . 1 . 1 . 2 1 . . . . 1 . 1 Propulsion 12 | . . 2 . . . . 1 1 1 2 3 . . . . . 2 Utility 11 | . 1 1 . . . . 2 . 2 . . . . 1 . . 4 Weapon 21 | . . 1 . . . . 4 . 2 3 4 . 1 . . 1 5 Highest Loss Streak 12 | . 1 2 . . 1 . 5 1 4 6 4 . 1 1 1 1 12 To Critical Strikes 1 | . . . . . . . . . 1 . . . . . . . . Average Slot Usage (%) 95 | . 95 99 100 100 96 98 99 94 91 96 92 80 77 79 100 99 97 Engine 4 | . 14 14 14 14 9 3 4 7 . . . . . 4 5 . . Core 2 | . . . . . . 3 2 . 5 5 6 6 6 . . 5 4 Treads 3 | . . 1 . 12 16 2 4 8 5 . . . . . . . . Leg 11 | . . . . . . 26 25 13 6 23 20 . 1 . . . . Wheel 4 | . 28 26 28 15 1 . . 3 5 . . 6 1 . . . . Hover 3 | . . . . . . . . . . . . . . 2 23 23 22 Device 3 | . 9 3 14 5 . 1 . . 5 4 5 6 7 5 4 4 3 Storage 7 | . 14 14 14 14 9 7 7 7 6 6 6 6 6 5 5 5 5 Processor 7 | . . . . . . 4 7 7 6 13 13 13 13 11 11 11 10 Hackware 5 | . . . . . . . . . 12 13 13 13 11 10 11 11 10 Protection 9 | . . 10 . 8 26 16 14 14 6 1 . . . 4 5 5 6 Ballistic Gun 22 | . 20 27 28 25 32 30 20 20 23 20 17 6 1 12 23 22 21 Ballistic Cannon 1 | . . . . . . . . 5 . . 1 6 6 2 . . . Launcher 1 | . . . . 2 . . 8 3 . 5 . . . . . . . Slashing Weapon 1 | . . . . . . . . . 2 . 4 13 13 8 5 5 4 Peak Build Rating 100 | 7 8 16 20 21 35 44 50 50 63 64 67 49 74 90 88 90 100 Average Rating 50 | 6 7 9 17 16 30 42 45 46 59 61 56 47 65 83 82 86 89 On Entrance 43 | . 7 8 16 20 13 35 43 46 49 63 61 40 49 74 81 84 86 Naked Turns . | . . . . . . . . . . . . . . . . . . Heaviest Build 113 | 12 31 31 28 31 57 55 64 59 113 51 52 49 49 54 50 54 63 Greatest Support 80 | 26 26 26 32 32 56 66 66 51 75 80 70 12 50 56 56 56 56 Greatest Overweight (x) 14 | . 1 1 1 1 3 1 1 2 4 1 14 4 3 3 . . 1 Average Overweight (x) . | . . 1 . . . . . 1 2 . . 3 . . . . . Largest Inventory Capacity 25 | 8 15 15 15 15 15 15 15 15 25 15 15 15 15 15 15 15 15 Average Capacity 15 | 7 11 15 15 15 15 15 15 15 23 15 15 15 15 15 15 15 15 Most Carried 25 | 8 15 15 15 15 15 15 15 15 25 15 15 13 13 15 15 15 15 Average Carried 13 | 5 9 13 14 14 14 14 11 13 17 13 13 11 9 13 14 14 14 Final Capacity 15 | 8 15 15 15 15 15 15 15 15 15 15 15 15 15 15 15 15 15 Final Carried 15 | 8 14 14 15 15 14 15 12 13 15 13 14 11 11 15 15 15 13 Class Distribution -------------------- 22% | Scavenger-Tank 18% | Scavenger-Skirmisher 16% | Hacker-Skirmisher 13% | Mutant 10% | Tank 3% | Hacker-Gunner 3% | Hacker-Mutant Dominant Class ---------------- Mutant | -10/Materials Mutant | -10/Mines Mutant | -10/Exiles Mutant | -9/Mines Tank | -8/Materials Scavenger-Tank | -7/Factory Scavenger-Tank | -7/Lower Caves Scavenger-Tank | -7/Lower Caves Scavenger-Skirmisher | -6/Factory Scavenger-Skirmisher | -6/Lower Caves Scavenger-Skirmisher | -6/Lower Caves Hacker-Mutant | -6/Data Miner Hacker-Mutant | -5/Proximity Caves Derelict-Skirmisher | -5/Factory Hacker-Skirmisher | -5/Upper Caves Hacker-Skirmisher | -5/Upper Caves Hacker-Skirmisher | -5/Warlord Resources | -11 -10 -10 -10 -9 -8 -7 -7 -7 -6 -6 -6 -6 -5 -5 -5 -5 -5 ----------- Run | Yrd Mat Min Exi Min Mat Fac Low Low Fac Low Low Dat Pro Fac Upp Upp War Matter Collected 6687 | 317 306 224 20 83 312 793 619 408 1104 799 427 . 81 11 352 277 554 Remotely . | . . . . . . . . . . . . . . . . . . Salvage Created 5662 | 208 283 279 . 13 372 918 400 187 863 624 366 . 48 41 147 458 455 Parts 328 | 13 22 17 . 3 14 57 22 9 53 40 18 . 6 9 5 26 14 Haulers Intercepted . | . . . . . . . . . . . . . . . . . . Recyclers Shooed . | . . . . . . . . . . . . . . . . . . Parts Field Recycled . | . . . . . . . . . . . . . . . . . . Retrieved Matter . | . . . . . . . . . . . . . . . . . . Parts Self-Destructed 107 | . . . . . . . 20 8 . 38 16 . 6 . 5 14 . Prevented 3 | . . . . . . . . . . . . . . . . 3 . Kills | -11 -10 -10 -10 -9 -8 -7 -7 -7 -6 -6 -6 -6 -5 -5 -5 -5 -5 ------- Run | Yrd Mat Min Exi Min Mat Fac Low Low Fac Low Low Dat Pro Fac Upp Upp War Combat Hostiles Destroyed 138 | . 10 10 . 2 9 17 11 7 13 19 10 . 1 4 3 14 8 Guns 112 | . 10 10 . . 9 17 8 2 13 13 7 . . . 2 14 7 Cannons 6 | . . . . . . . . 2 . . 3 . 1 . . . . AOE 19 | . . . . 2 . . 3 3 . 6 . . . 4 1 . . Classes Destroyed 18 | 3 3 . . . 1 3 3 . . 1 . . . 1 . . 3 Worker 3 | 2 . . . . . . . . 1 . . . . . . . . Builder 1 | . . . . . . . . . . . . . . 1 . . . Tunneler 7 | 5 . . . . . 1 . . 1 . . . . . . . . Recycler 4 | 1 . . . . 1 1 . . 1 . . . . . . . . Operator 3 | . . . . . . 2 . . 1 . . . . . . . . Watcher 1 | . 1 . . . . . . . . . . . . . . . . Swarmer 56 | . 6 6 . 2 5 2 . 2 . 13 6 . . 4 . 10 . Saboteur 1 | . . . . . . . . . . . . . . . . . 1 Grunt 44 | . 4 4 . . 3 8 6 4 3 1 4 . . . 2 . 5 Brawler 2 | . . . . . . . . . . 2 . . . . . . . Duelist 3 | . . . . . . . 1 . . 1 . . . . 1 . . Sentry 6 | . . . . . 1 2 1 . 1 1 . . . . . . . Hunter 5 | . . . . . . 1 . . 4 . . . . . . . . Programmer 11 | . . . . . . 3 1 1 5 . . . 1 . . . . Behemoth 2 | . . . . . . . 1 . . 1 . . . . . . . Striker 1 | . . . . . . . . . . . . . . . . . 1 Executioner 1 | . . . . . . . . . . . . . . . . . 1 Thug 5 | . . . . . . 1 . . . . . . . . . 4 . Mutant 1 | . . . . . . . 1 . . . . . . . . . . Best Kill Streak 9 | 4 3 3 . 2 3 3 4 3 6 8 5 . 1 5 2 9 2 Combat Bots Only 9 | . 3 3 . 2 3 3 4 3 5 8 5 . 1 4 2 9 2 Max Kills in Single Turn 5 | 1 1 1 . 2 1 1 2 2 1 3 2 . 1 5 1 3 1 Gunslinging 1 | . . . . . . . . . . 1 1 . . . . . . Exploded 4 | . . . . 2 . . 2 1 . 3 . . . 4 1 . . Melee . | . . . . . . . . . . . . . . . . . . Uniques/NPCs Destroyed . | . . . . . . . . . . . . . . . . . . Combat | -11 -10 -10 -10 -9 -8 -7 -7 -7 -6 -6 -6 -6 -5 -5 -5 -5 -5 -------- Run | Yrd Mat Min Exi Min Mat Fac Low Low Fac Low Low Dat Pro Fac Upp Upp War Hostile Shots Fired 1035 | . 35 74 . 1 55 163 86 18 112 118 58 . 44 6 22 45 198 Missed 339 | . 8 21 . . 12 61 39 6 25 35 9 . 19 2 8 13 81 Damage Taken 11108 | . 317 509 . 21 441 1065 837 150 1390 1258 834 . 529 170 297 513 2777 Core 1457 | . 106 83 . . 45 76 50 15 101 87 125 . 85 16 23 49 596 Absorbed by Shields . | . . . . . . . . . . . . . . . . . . Regen/Repaired (Parts) 205 | . . . . . . . . . . . . . . . . . 205 Core Remaining (%) 69 | 100 . . . 24 91 . . 79 . . . . 53 . . . . Volleys Fired 357 | 18 29 36 . 2 26 52 31 14 43 25 22 . 5 3 6 17 28 Largest 4 | 2 2 2 . 2 4 4 4 4 4 4 4 . 2 3 4 4 4 Hottest 136 | 90 90 40 . 53 89 92 129 135 112 125 136 . 80 115 104 124 114 Shots Fired 1131 | 36 58 72 . 4 89 208 101 50 161 92 78 . 8 7 24 52 91 Gun 1070 | 36 58 72 . 2 89 208 79 36 161 87 67 . 3 5 24 52 91 Cannon 36 | . . . . . . . 8 10 . . 11 . 5 2 . . . Launcher 25 | . . . . 2 . . 14 4 . 5 . . . . . . . Special . | . . . . . . . . . . . . . . . . . . Kinetic 1044 | . 32 72 . 2 89 208 87 46 161 87 78 . 8 7 24 52 91 Thermal 62 | 36 26 . . . . . . . . . . . . . . . . Explosive 25 | . . . . 2 . . 14 4 . 5 . . . . . . . Electromagnetic . | . . . . . . . . . . . . . . . . . . Robot Hit Streak 12 | 6 9 8 . 3 9 11 12 4 12 10 8 . 3 2 6 6 11 Robot Miss Streak 12 | 2 4 4 . . 5 6 4 8 4 5 3 . 2 11 6 12 7 Penetration Max 2 | . . . . . . . . . 1 1 . . 1 . . 1 2 Secondary Targets 22 | . . 2 . . 3 2 1 . . 5 3 . . . . 2 4 Max Gunslinging Chain 1 | . . 1 . . 1 1 1 . . 1 1 . . . . 1 1 Shots Hit Robots 657 | 24 34 45 . 2 45 113 56 27 100 50 41 . 4 2 16 30 68 Core Hits 371 | 9 18 19 . 4 21 49 43 22 55 28 20 . 2 7 11 32 31 Critical Kills 9 | . . . . . . . . . 1 . 3 . 1 . . 2 2 Critical Parts Destroyed 17 | . 1 . . . . 1 1 . 2 2 2 . 2 . 1 . 5 Critical Strikes 30 | 1 3 . . . . 1 1 1 3 2 5 . 3 . 1 2 7 Burn 3 | 1 2 . . . . . . . . . . . . . . . . Destroy 26 | . 1 . . . . 1 1 . 3 2 5 . 3 . 1 2 7 Blast 1 | . . . . . . . . 1 . . . . . . . . . Melee Attacks 48 | . . . . . . . . . 19 . 1 . 4 17 . . 7 Impact . | . . . . . . . . . . . . . . . . . . Slashing 46 | . . . . . . . . . 19 . 1 . 4 17 . . 5 Piercing 2 | . . . . . . . . . . . . . . . . . 2 Sneak Attacks 3 | . . . . . . . . . 1 . . . . . . . 2 Combat Hostiles . | . . . . . . . . . . . . . . . . . . Follow-up Attacks 1 | . . . . . . . . . . . . . . 1 . . . Damage Inflicted 14111 | 288 440 477 . 202 511 1814 1734 842 1950 1497 772 . 122 398 309 827 1928 Guns 11208 | 288 440 477 . 7 511 1814 858 287 1880 958 660 . 31 12 309 827 1849 Cannons 465 | . . . . . . . 61 201 . . 112 . 91 . . . . Explosions 2258 | . . . . 195 . . 815 354 . 539 . . . 355 . . . Melee 179 | . . . . . . . . . 69 . . . . 31 . . 79 Ramming 1 | . . . . . . . . . 1 . . . . . . . . Kinetic 11233 | . 288 477 . 7 511 1814 919 488 1880 958 772 . 122 12 309 827 1849 Thermal 440 | 288 152 . . . . . . . . . . . . . . . . Explosive 2258 | . . . . 195 . . 815 354 . 539 . . . 355 . . . Electromagnetic . | . . . . . . . . . . . . . . . . . . Impact . | . . . . . . . . . . . . . . . . . . Slashing 171 | . . . . . . . . . 69 . . . . 31 . . 71 Piercing 8 | . . . . . . . . . . . . . . . . . 8 Highest Corruption 1 | . . . . . . 1 . 1 1 . . . . . . . 1 Average Corruption 1 | . . . . . . 1 . 1 1 . . . . . . . 1 Corruption Purged 5 | . . . . . . 1 . 1 3 . . . . . . . . Corruption Blocked . | . . . . . . . . . . . . . . . . . . Effects 13 | . . . . . . 5 . 2 1 . . . . . . . 5 Message Errors 5 | . . . . . . 3 . . . . . . . . . . 2 Matter Fused 2 | . . . . . . 1 . . . . . . . . . . 1 Heat Flow Errors 1 | . . . . . . . . 1 . . . . . . . . . Parts Fused 1 | . . . . . . . . 1 . . . . . . . . . Data Loss (minor) 1 | . . . . . . 1 . . . . . . . . . . . Misfires 1 | . . . . . . . . . 1 . . . . . . . . Weapon Failures 2 | . . . . . . . . . . . . . . . . . 2 Overload Shots . | . . . . . . . . . . . . . . . . . . Overflow Damage 62 | . . . . 28 . . . 14 . . . . . 9 . . 11 Projectiles . | . . . . . . . . . . . . . . . . . . Explosions 42 | . . . . 28 . . . 14 . . . . . . . . . Melee 20 | . . . . . . . . . . . . . . 9 . . 11 Knockbacks 5 | . . . . . . . . 2 . . 3 . . . . . . Impact . | . . . . . . . . . . . . . . . . . . Kinetic 4 | . . . . . . . . 2 . . 2 . . . . . . Secondary 1 | . . . . . . . . . . . 1 . . . . . . Self-Inflicted Damage 146 | . . . . . . . 35 . . . . . . 111 . . . Shots 2 | . . . . . . . 1 . . . . . . 1 . . . Rammed 1 | . . . . . . . . . 1 . . . . . . . . Targets Rammed 1 | . . . . . . . . . 1 . . . . . . . . Kicked . | . . . . . . . . . . . . . . . . . . Crushed . | . . . . . . . . . . . . . . . . . . Highest Temperature 397 | 140 129 21 . 16 70 183 120 168 102 111 359 . 22 94 213 397 341 Average Temperature 63 | 52 35 7 . 10 24 36 46 61 33 33 137 . 12 49 84 192 73 Received Heat Transfer 2027 | . 102 96 . 9 90 225 171 36 141 186 270 . 126 . 90 63 422 Effects 8 | . . . . . . . . . . . 3 . . . . 4 1 Shutdowns 2 | . . . . . . . . . . . 1 . . . . 1 . Energy Bleed 1 | . . . . . . . . . . . 1 . . . . . . Matter Decay 1 | . . . . . . . . . . . 1 . . . . . . Short Circuit 2 | . . . . . . . . . . . . . . . . 1 1 Damage (minor) 2 | . . . . . . . . . . . . . . . . 2 . Siege Activations . | . . . . . . . . . . . . . . . . . . Robots Corrupted . | . . . . . . . . . . . . . . . . . . Combat Hostiles . | . . . . . . . . . . . . . . . . . . Parts Fried . | . . . . . . . . . . . . . . . . . . Impact Corruptions . | . . . . . . . . . . . . . . . . . . Robots Melted . | . . . . . . . . . . . . . . . . . . Combat Hostiles . | . . . . . . . . . . . . . . . . . . Parts Melted 1 | 1 . . . . . . . . . . . . . . . . . Heat Transferred 1446 | 854 592 . . . . . . . . . . . . . . . . Parts Sabotaged 4 | . . . . . . . . . . . . . . . . . 4 Parts Stolen 3 | . . . . . . . . 2 . . 1 . . . . . . Parts Stripped . | . . . . . . . . . . . . . . . . . . Power Chain Reactions . | . . . . . . . . . . . . . . . . . . Alert | -11 -10 -10 -10 -9 -8 -7 -7 -7 -6 -6 -6 -6 -5 -5 -5 -5 -5 ------- Run | Yrd Mat Min Exi Min Mat Fac Low Low Fac Low Low Dat Pro Fac Upp Upp War Peak Influence 512 | 40 384 203 . 115 314 212 . . 197 . . . . 512 . . . Initial 416 | . 26 33 . . . 142 . . 18 . . . . 416 . . . Average 126 | 18 206 97 . 28 171 122 . . 48 . . . . 286 . . . Maximum Alert Level 2 | . 1 1 . . 1 1 . . . . . . . 2 . . . Low Security (%) 76 | 100 33 85 . 100 51 91 . . 100 . . . . 32 . . . Level 1 20 | . 66 14 . . 48 8 . . . . . . . 38 . . . Level 2 3 | . . . . . . . . . . . . . . 28 . . . Level 3 . | . . . . . . . . . . . . . . . . . . Level 4 . | . . . . . . . . . . . . . . . . . . Level 5 . | . . . . . . . . . . . . . . . . . . High Security . | . . . . . . . . . . . . . . . . . . Max Security . | . . . . . . . . . . . . . . . . . . Squads Dispatched 20 | . 1 . . . 3 4 . . 10 . 1 . 1 . . . . Investigation 4 | . . . . . 1 . . . 2 . 1 . . . . . . Extermination 7 | . . . . . . 2 . . 5 . . . . . . . . Reinforcement 7 | . 1 . . . 2 1 . . 3 . . . . . . . . Assault 1 | . . . . . . . . . . . . . 1 . . . . Garrison 1 | . . . . . . 1 . . . . . . . . . . . Intercept . | . . . . . . . . . . . . . . . . . . Searches Triggered 1 | . . . . . . . . . . . . . . 1 . . . Construction Impeded . | . . . . . . . . . . . . . . . . . . Haulers Reinforced . | . . . . . . . . . . . . . . . . . . Active Scanning Responses . | . . . . . . . . . . . . . . . . . . Cargo Convoy Interrupts . | . . . . . . . . . . . . . . . . . . Stealth | -11 -10 -10 -10 -9 -8 -7 -7 -7 -6 -6 -6 -6 -5 -5 -5 -5 -5 --------- Run | Yrd Mat Min Exi Min Mat Fac Low Low Fac Low Low Dat Pro Fac Upp Upp War Distress Signals 10 | . 2 . . . 3 3 . . . . . . . . . . 2 Communications Jammed 8 | . . . . . . . . . . . . . 8 . . . . Distress Signals 8 | . . . . . . . . . . . . . 8 . . . . Times Spotted 305 | . 20 9 . 5 28 30 12 10 23 22 14 . 17 9 5 17 84 Peak Tracking Total 19 | . 4 3 . 3 5 4 4 3 4 8 5 . 10 3 7 5 19 Tactical Retreats 24 | . 3 . . . . 3 1 1 . 2 2 . 4 . 2 2 4 Traps | -11 -10 -10 -10 -9 -8 -7 -7 -7 -6 -6 -6 -6 -5 -5 -5 -5 -5 ------- Run | Yrd Mat Min Exi Min Mat Fac Low Low Fac Low Low Dat Pro Fac Upp Upp War Traps Triggered 9 | . 1 . . . 1 4 . . 3 . . . . . . . . Indirectly . | . . . . . . . . . . . . . . . . . . Trap Hack Attempts . | . . . . . . . . . . . . . . . . . . Triggered . | . . . . . . . . . . . . . . . . . . Disarmed 1 | . 1 . . . . . . . . . . . . . . . . Reprogrammed . | . . . . . . . . . . . . . . . . . . Reused . | . . . . . . . . . . . . . . . . . . Traps Extracted . | . . . . . . . . . . . . . . . . . . Installed . | . . . . . . . . . . . . . . . . . . Triggered 29 | . . . . . . . . 1 . . . . . . 1 . 27 Machines | -11 -10 -10 -10 -9 -8 -7 -7 -7 -6 -6 -6 -6 -5 -5 -5 -5 -5 ---------- Run | Yrd Mat Min Exi Min Mat Fac Low Low Fac Low Low Dat Pro Fac Upp Upp War Machines Disabled 6 | . . . . . 2 . 1 . 2 . . . . 1 . . . Max in Single Turn 1 | . . . . . . . 1 . 1 . . . . 1 . . . Garrison Access 3 | . . . . . . 1 . . . . . . . 2 . . . Machines Repaired . | . . . . . . . . . . . . . . . . . . Machines Dismantled . | . . . . . . . . . . . . . . . . . . Machines Sabotaged . | . . . . . . . . . . . . . . . . . . Overloaded Fab Kills . | . . . . . . . . . . . . . . . . . . Hacking | -11 -10 -10 -10 -9 -8 -7 -7 -7 -6 -6 -6 -6 -5 -5 -5 -5 -5 --------- Run | Yrd Mat Min Exi Min Mat Fac Low Low Fac Low Low Dat Pro Fac Upp Upp War Machines Accessed 66 | . 7 . 5 . 5 9 . 1 8 1 1 4 . 8 1 2 14 Terminals 33 | . 7 . . . 5 7 . . 7 . 1 . . 6 . . . Fabricators 1 | . . . . . . . . . 1 . . . . . . . . Repair Stations . | . . . . . . . . . . . . . . . . . . Recycling Units 1 | . . . . . . 1 . . . . . . . . . . . Scanalyzers . | . . . . . . . . . . . . . . . . . . Garrison Access 3 | . . . . . . 1 . . . . . . . 2 . . . Total Hacks 222 | . 26 . 50 . 12 23 . 1 26 1 4 32 . 14 1 4 28 Successful 174 | . 14 . 50 . 4 11 . 1 12 1 4 32 . 12 1 4 28 Failed 48 | . 12 . . . 8 12 . . 14 . . . . 2 . . . Catastrophic 10 | . 3 . . . 3 2 . . 2 . . . . . . . . Database Lockouts . | . . . . . . . . . . . . . . . . . . Manual 77 | . 15 . 1 . 11 17 . . 22 . . . . 10 . . 1 Terminals 96 | . 26 . . . 12 19 . . 23 . 4 . . 12 . . . Fabricators 3 | . . . . . . . . . 3 . . . . . . . . Repair Stations . | . . . . . . . . . . . . . . . . . . Recycling Units 1 | . . . . . . 1 . . . . . . . . . . . Scanalyzers . | . . . . . . . . . . . . . . . . . . Garrison Access 5 | . . . . . . 3 . . . . . . . 2 . . . Terminal Hacks 140 | . 7 . 50 . 1 3 . 1 4 1 4 32 . 4 1 4 28 Record 89 | . . . 49 . . . . . . . 4 11 . . . 3 22 Part Schematic 13 | . . . . . . . . . 1 . . 12 . . . . . Robot Schematic 6 | . . . . . . . . . . . . 6 . . . . . Prototype ID Bank 10 | . 1 . . . . . . . . . . 3 . 1 . . 5 Open Door 5 | . . . . . . . . 1 . 1 . . . . 1 1 1 Branch Access Points 3 | . 1 . . . . 1 . . 1 . . . . . . . . Terminal Index 1 | . . . . . . . . . . . . . . 1 . . . Fabricator Index 1 | . . . . . . . . . 1 . . . . . . . . Alert Level 4 | . . . . . 1 1 . . 1 . . . . 1 . . . Unreport Threat 1 | . . . . . . . . . . . . . . 1 . . . Locate Traps 2 | . 2 . . . . . . . . . . . . . . . . Disarm Traps 1 | . 1 . . . . . . . . . . . . . . . . Dispatch Records 1 | . . . . . . 1 . . . . . . . . . . . Patrol Status 1 | . 1 . . . . . . . . . . . . . . . . Zone Layout 1 | . 1 . . . . . . . . . . . . . . . . Derelict Proto ID Bank 1 | . . . 1 . . . . . . . . . . . . . . Fabricator Hacks 2 | . . . . . . . . . 2 . . . . . . . . Load Schematic 1 | . . . . . . . . . 1 . . . . . . . . Build 1 | . . . . . . . . . 1 . . . . . . . . Repair Station Hacks . | . . . . . . . . . . . . . . . . . . Recycling Unit Hacks . | . . . . . . . . . . . . . . . . . . Scanalyzer . | . . . . . . . . . . . . . . . . . . Garrison Access Hacks 3 | . . . . . . 1 . . . . . . . 2 . . . Seal Access 3 | . . . . . . 1 . . . . . . . 2 . . . Unauthorized Hacks 29 | . 7 . . . 3 7 . . 6 . . . . 6 . . . Terminals 28 | . 7 . . . 3 6 . . 6 . . . . 6 . . . Assimilate 1 | . . . . . . . . . 1 . . . . . . . . Botnet 27 | . 7 . . . 3 6 . . 5 . . . . 6 . . . Fabricators . | . . . . . . . . . . . . . . . . . . Repair Stations . | . . . . . . . . . . . . . . . . . . Recycling Units 1 | . . . . . . 1 . . . . . . . . . . . Recyclers 1 | . . . . . . 1 . . . . . . . . . . . Scanalyzers . | . . . . . . . . . . . . . . . . . . Garrison Access . | . . . . . . . . . . . . . . . . . . Data Cores Recovered 3 | . . . . . 1 2 . . . . . . . . . . . Used 1 | . . . . . 1 . . . . . . . . . . . . Hacking Detections 35 | . 7 . . . 5 8 . . 8 . 1 . . 6 . . . Full Trace Events 3 | . . . . . 1 . . . 1 . 1 . . . . . . Feedback Events . | . . . . . . . . . . . . . . . . . . Feedback Blocked . | . . . . . . . . . . . . . . . . . . Robot Schematics Acquired 6 | . . . . . . . . . . . . 6 . . . . . Robots Built . | . . . . . . . . . . . . . . . . . . Authchips . | . . . . . . . . . . . . . . . . . . Time . | . . . . . . . . . . . . . . . . . . Total Robot Build Rating . | . . . . . . . . . . . . . . . . . . Part Schematics Acquired 13 | . . . . . . . . . 1 . . 12 . . . . . Parts Built 2 | . . . . . . . . . 2 . . . . . . . . Authchips . | . . . . . . . . . . . . . . . . . . Time 95 | . . . . . . . . . 95 . . . . . . . . Total Part Build Rating 10 | . . . . . . . . . 10 . . . . . . . . Parts Repaired . | . . . . . . . . . . . . . . . . . . Time . | . . . . . . . . . . . . . . . . . . Parts Recycled . | . . . . . . . . . . . . . . . . . . Recycled Matter . | . . . . . . . . . . . . . . . . . . Retrieved Matter . | . . . . . . . . . . . . . . . . . . Retrieved Components . | . . . . . . . . . . . . . . . . . . Parts Scanalyzed . | . . . . . . . . . . . . . . . . . . Part Schematics Acquired . | . . . . . . . . . . . . . . . . . . Parts Damaged . | . . . . . . . . . . . . . . . . . . Bothacking | -11 -10 -10 -10 -9 -8 -7 -7 -7 -6 -6 -6 -6 -5 -5 -5 -5 -5 ------------ Run | Yrd Mat Min Exi Min Mat Fac Low Low Fac Low Low Dat Pro Fac Upp Upp War Used RIF Installer . | . . . . . . . . . . . . . . . . . . Robots Hacked . | . . . . . . . . . . . . . . . . . . Non-combat . | . . . . . . . . . . . . . . . . . . Combat . | . . . . . . . . . . . . . . . . . . Robot Hacks Applied . | . . . . . . . . . . . . . . . . . . Relay Couplers Released . | . . . . . . . . . . . . . . . . . . Fabnet Peak Effective % . | . . . . . . . . . . . . . . . . . . Robots Rewired . | . . . . . . . . . . . . . . . . . . Allies Hacked . | . . . . . . . . . . . . . . . . . . Hacks Repelled . | . . . . . . . . . . . . . . . . . . Allies | -11 -10 -10 -10 -9 -8 -7 -7 -7 -6 -6 -6 -6 -5 -5 -5 -5 -5 -------- Run | Yrd Mat Min Exi Min Mat Fac Low Low Fac Low Low Dat Pro Fac Upp Upp War Total Allies 9 | . . . . 5 . . . . 1 . . . . . . 3 . Largest Group 5 | . . . . 5 5 3 . . . . . . . . . 3 . Highest-Rated Group 85 | . . . . 85 85 55 . . . . . . . . . 60 . Highest-Rated Ally 31 | . . . . 31 31 31 . . . . . . . . . 20 . Total Orders . | . . . . . . . . . . . . . . . . . . Ally Attacks 127 | . . . . 27 89 11 . . . . . . . . . . . Total Damage 1415 | . . . . 235 1071 109 . . . . . . . . . . . Kills 22 | . . . . 4 17 1 . . . . . . . . . . . Allies Corrupted . | . . . . . . . . . . . . . . . . . . Allies Melted 1 | . . . . . . . . . . . . . . . . . 1 Intel | -11 -10 -10 -10 -9 -8 -7 -7 -7 -6 -6 -6 -6 -5 -5 -5 -5 -5 ------- Run | Yrd Mat Min Exi Min Mat Fac Low Low Fac Low Low Dat Pro Fac Upp Upp War Robot Analysis Total . | . . . . . . . . . . . . . . . . . . Derelict Logs Recovered 15 | . . 1 . 2 . . 2 2 . 2 2 . 2 . 1 1 . Drone Launches . | . . . . . . . . . . . . . . . . . . Drone Recoveries . | . . . . . . . . . . . . . . . . . . Exploration | -11 -10 -10 -10 -9 -8 -7 -7 -7 -6 -6 -6 -6 -5 -5 -5 -5 -5 ------------- Run | Yrd Mat Min Exi Min Mat Fac Low Low Fac Low Low Dat Pro Fac Upp Upp War Turns Passed 19740 | 187 836 683 597 569 1159 2241 2158 1859 2283 1963 1272 137 252 1058 719 457 1310 Spaces Moved 14954 | 135 768 472 588 439 607 1315 1277 1195 1297 1468 1008 99 369 959 939 553 1466 Core 4 | 3 . . . . . . . . . . 1 . . . . . . Treads 701 | . . 14 . 41 511 135 . . . . . . . . . . . Legs 5297 | . . . . . . 1180 1277 521 74 1468 777 . . . . . . Wheels 4599 | 132 768 458 588 398 96 . . 674 1223 . 113 99 50 . . . . Hover 3079 | . . . . . . . . . . . . . . 121 939 553 1466 Flight 1274 | . . . . . . . . . . . 117 . 319 838 . . . Fastest Speed 50 | 50 80 95 100 100 130 120 120 115 115 122 50 135 50 50 71 71 71 Average Speed 113 | 84 89 102 100 124 168 128 158 150 139 125 117 135 61 70 71 71 72 Slowest Speed 750 | 100 105 240 105 240 240 240 190 190 160 195 750 150 135 290 71 71 147 Overloaded Moves . | . . . . . . . . . . . . . . . . . . Propulsion Burnouts . | . . . . . . . . . . . . . . . . . . Robots Hopped 1 | . . . . . . . . . . . . . . 1 . . . Cave-ins Triggered . | . . . . . . . . . . . . . . . . . . Exploration Rate (%) 70 | 5 98 83 91 91 52 29 97 95 26 99 96 75 53 22 92 65 95 Regions Visited 17 Branch Regions 12 Pre-discovered Areas 7 | . . 2 1 . . . . . . . 1 1 1 . . . 1 Known Exits Taken 10 | . 1 . . . . 1 . . 1 1 1 1 1 1 1 1 . Unknown Exits Taken 7 | 1 . 1 1 1 1 . 1 1 . . . . . . . . . Scrap Searched 32 | . . 2 . 2 . . 3 8 . 4 3 . 4 . 4 2 . Spaces Dug 36 | . . . . . . . . . 18 . . . 3 15 . . . Terrain Destroyed 299 | . . . . 21 . . 66 69 21 55 3 . 4 36 5 11 8 Melee 35 | . . . . . . . . . 18 . . . 2 15 . . . Projectile 37 | . . . . . . . . 1 3 2 3 . 2 2 5 11 8 AOE 227 | . . . . 21 . . 66 68 . 53 . . . 19 . . . Terrain Rammed . | . . . . . . . . . . . . . . . . . . Walls Destroyed . | . . . . . . . . . . . . . . . . . . Machines Disabled . | . . . . . . . . . . . . . . . . . . Actions | -11 -10 -10 -10 -9 -8 -7 -7 -7 -6 -6 -6 -6 -5 -5 -5 -5 -5 --------- Run | Yrd Mat Min Exi Min Mat Fac Low Low Fac Low Low Dat Pro Fac Upp Upp War Total 16949 | 171 858 608 600 454 694 1750 1342 1221 1657 1521 1053 102 383 1320 979 579 1657 Wait 1168 | . 33 84 . 5 35 328 8 . 226 1 8 . . 302 24 . 114 Move 14935 | 134 767 471 587 438 606 1314 1276 1194 1296 1467 1007 98 368 956 938 552 1466 Hop 1 | . . . . . . . . . . . . . . 1 . . . Pick Up 100 | 9 9 5 5 1 2 10 4 3 19 5 3 . 3 10 2 3 7 Fast Attach 47 | 7 3 1 . 1 3 5 2 1 3 3 1 . . 8 . 1 8 Attach 51 | . . 4 . . 3 1 9 2 9 4 4 3 1 4 . 2 5 Detach 23 | . 1 1 . . . 2 2 . 1 . 2 . 2 5 . 1 6 Swap 106 | 1 7 3 1 5 9 11 9 4 20 11 5 1 2 4 5 2 6 Drop 97 | 2 9 3 7 2 10 17 1 3 12 5 . . . 11 4 1 10 Fire 357 | 18 29 36 . 2 26 52 31 14 43 25 22 . 5 3 6 17 28 Melee 45 | . . . . . . . . . 19 . 1 . 2 16 . . 7 Ram 1 | . . . . . . . . . 1 . . . . . . . . Kick . | . . . . . . . . . . . . . . . . . . Crush . | . . . . . . . . . . . . . . . . . . Escape Stasis 18 | . . . . . . 10 . . 8 . . . . . . . . Rewire . | . . . . . . . . . . . . . . . . . . Trap . | . . . . . . . . . . . . . . . . . . Miscellaneous . | . . . . . . . . . . . . . . . . . . Route ------- -11/Scrapyard -10/Materials (discovered 6 exits: [*Mat x3] / *Min x2 / [*Sub]) -10/Mines (discovered 3 exits: [*Mat x2] / *Exi) -10/Exiles -9/Mines (discovered 2 exits: *Mat x2) -8/Materials (discovered 2 exits: *Fac x2) -7/Factory (discovered 6 exits: *Fac x2 / *Sto x2 / *Low x2) -7/Lower Caves -7/Lower Caves (discovered 2 exits: *Fac / [*Zio]) -6/Factory (discovered 6 exits: *Fac x2 / *Low x2 / *Ext x2) -6/Lower Caves -6/Lower Caves (discovered 2 exits: *Fac / *Dat) -6/Data Miner -5/Proximity Caves -5/Factory (discovered 3 exits: Fac / *Upp x2) -5/Upper Caves -5/Upper Caves (discovered 2 exits: *Fac / *War) -5/Warlord (discovered 1 exit: *Pro) History --------- Turn | Location | Event 7 | -11/Scrapyard | Discovered new exit (range 15) 188 | -11/Scrapyard | Entered Materials 230 | -10/Materials | Discovered new exit (range 9) 307 | -10/Materials | Build established: Mutant 383 | -10/Materials | Identified exit to Mines 396 | -10/Materials | Discovered new exit (range 8) 575 | -10/Materials | Discovered new exit (range 6) 796 | -10/Materials | Discovered new exit (range 7) 931 | -10/Materials | Discovered new exit (range 10) 1024 | -10/Materials | Entered Mines 1113 | -10/Mines | Learned location of Storage (-7) 1123 | -10/Mines | Discovered new exit (range 11) 1130 | -10/Mines | Received a Rocket Launcher from a helpful Derelict 1230 | -10/Mines | Core integrity fell below 50% 1365 | -10/Mines | Deemed a non-threat by the Exiles lab entrance 1387 | -10/Mines | Discovered new exit (range 7) 1534 | -10/Mines | Found a damaged Exp. Sensor Array with a note attached 1536 | -10/Mines | Found Prototype Device 1536 | -10/Mines | Identified Exp. Sensor Array 1703 | -10/Mines | Discovered new exit (range 5) 1707 | -10/Mines | Entered Exiles 1739 | -10/Exiles | Met 8R-AWN 1755 | -10/Exiles | Met EX-HEX 1823 | -10/Exiles | Met EX-DEC 1853 | -10/Exiles | Visited The Gauntlet 1966 | -10/Exiles | Learned location of Zion (-7) 2074 | -10/Exiles | Met EX-BIN 2122 | -10/Exiles | Aligned with FarCom system 2123 | -10/Exiles | Given EX-Vault access code 2170 | -10/Exiles | Opened EX-Vault 2176 | -10/Exiles | Found Flying Fortress v7 2198 | -10/Exiles | Warned to stay clear of 0b10 Research branches 2296 | -10/Exiles | Discovered new exit (range 10) 2304 | -10/Exiles | Left Exiles lab with Flying Fortress v7 2304 | -10/Exiles | Entered Mines 2305 | -9/Mines | Assembled infested the area 2310 | -9/Mines | Assisted by a Guerilla fighting off Assembled 2331 | -9/Mines | Assisted by bots powering up and referring to "LRC-V3" 2502 | -9/Mines | Found a hidden stash of uninstalled traps 2539 | -9/Mines | Learned Materials terminal intel 2591 | -9/Mines | Discovered new exit (range 9) 2833 | -9/Mines | Discovered new exit (range 11) 2873 | -9/Mines | Entered Materials 2873 | -8/Materials | Accompanied by 5 allies 2873 | -8/Materials | Evolved 4 slots: Utility x2, Weapon x2 2874 | -8/Materials | Loaded intel: 12 terminal locations 2878 | -8/Materials | Led the pair of lost Derelicts to an unsafe place 3186 | -8/Materials | Build established: Tank 3268 | -8/Materials | Discovered new exit (range 8) 3975 | -8/Materials | Discovered new exit (range 8) 4032 | -8/Materials | Entered Factory 4032 | -7/Factory | Accompanied by 3 allies 4032 | -7/Factory | Evolved 2 slots: Propulsion x2 4033 | -7/Factory | Identified exit to Lower Caves 4439 | -7/Factory | P-60 Hacker assimilated allied HE-2KQ(g) 4884 | -7/Factory | Build established: Scavenger-Tank 5015 | -7/Factory | Discovered new exit (range 10) 5310 | -7/Factory | Discovered new exit (range 5) 5426 | -7/Factory | Identified exit to Storage 5960 | -7/Factory | Build established: Scavenger-Skirmisher 6105 | -7/Factory | Garrison activated, responded to threat 6145 | -7/Factory | Discovered new exit (range 16) 6273 | -7/Factory | Entered Lower Caves 6676 | -7/Lower Caves | Build established: Scavenger-Tank 6697 | -7/Lower Caves | Learned Factory terminal intel 6992 | -7/Lower Caves | Spotted B-75 Beast 7002 | -7/Lower Caves | Attracted the attention of an 0b10 checkpoint 7074 | -7/Lower Caves | Destroyed B-75 Beast 7105 | -7/Lower Caves | Lost 5 parts (1p1n1u2w) 7274 | -7/Lower Caves | Learned Factory stockpile data 7410 | -7/Lower Caves | Discovered new exit (range 5) 8166 | -7/Lower Caves | Attacked by a delusional Derelict stockpiling parts 8431 | -7/Lower Caves | Entered another Lower Caves area 8612 | -7/Lower Caves | Discovered new exit (range 13) 9392 | -7/Lower Caves | Learned 12 Factory zone layouts 9447 | -7/Lower Caves | Discovered new exit (range 15) 9682 | -7/Lower Caves | Learned Factory terminal intel 9814 | -7/Lower Caves | Encountered a Warlord checkpoint 9928 | -7/Lower Caves | Build established: Derelict-Tank 10290 | -7/Lower Caves | Entered Factory 10290 | -6/Factory | Evolved 2 slots: Utility x2 10291 | -6/Factory | Identified exit to Lower Caves 10291 | -6/Factory | Identified exit to Factory 10293 | -6/Factory | Loaded intel: 28 terminal locations 10789 | -6/Factory | Build established: Hacker-Skirmisher 11041 | -6/Factory | Identified exit to Extension 11150 | -6/Factory | Discovered exit to Factory (range 8) 11255 | -6/Factory | Build established: Scavenger-Skirmisher 11594 | -6/Factory | P-60 Hacker assimilated allied Administrator 5a 12075 | -6/Factory | Lost 4 parts (1n1u2w) 12293 | -6/Factory | Fabricated Adv. Signal Interpreter (x2) 12573 | -6/Factory | Entered Lower Caves 13529 | -6/Lower Caves | Spotted B-75 Beast 13574 | -6/Lower Caves | Encountered a Warlord checkpoint 13604 | -6/Lower Caves | Attracted the attention of an 0b10 outpost 13654 | -6/Lower Caves | Destroyed B-75 Beast 13670 | -6/Lower Caves | Lost 6 parts (1p2n3w) 13675 | -6/Lower Caves | Destroyed 8 combat bots 13698 | -6/Lower Caves | Learned location of 1 exit from Factory 13707 | -6/Lower Caves | Learned 4 Factory zone layouts 13878 | -6/Lower Caves | Discovered new exit (range 13) 13892 | -6/Lower Caves | Identified exit to Lower Caves 14047 | -6/Lower Caves | Build established: Hacker-Skirmisher 14536 | -6/Lower Caves | Entered another Lower Caves area 14620 | -6/Lower Caves | Discovered exit to Factory (range 12) 14850 | -6/Lower Caves | Learned Factory stockpile data 14887 | -6/Lower Caves | Build established: Scavenger-Skirmisher 15482 | -6/Lower Caves | Attracted the attention of an 0b10 base 15537 | -6/Lower Caves | Lost 3 parts (2n1w) 15593 | -6/Lower Caves | Learned location of Armory (-3) 15595 | -6/Lower Caves | Learned 8 Factory zone layouts 15596 | -6/Lower Caves | Lost 4 parts (1n3w) 15615 | -6/Lower Caves | Discovered new exit (range 12) 15616 | -6/Lower Caves | Encountered a Warlord checkpoint 15621 | -6/Lower Caves | Identified exit to Data Miner 15808 | -6/Lower Caves | Entered Data Miner 15810 | -6/Data Miner | Discovered new exit (range 6) 15820 | -6/Data Miner | Identified exit to Proximity Caves 15830 | -6/Data Miner | Build established: Hacker-Mutant 15840 | -6/Data Miner | Met Data Miner 15866 | -6/Data Miner | Learned location of Section 7 (-2) 15866 | -6/Data Miner | Acquired the access code to Warlord's prototype stash 15898 | -6/Data Miner | Received God Mode back door access code from Data Miner 15945 | -6/Data Miner | Entered Proximity Caves 15985 | -5/Proximity Caves | Attracted the attention of an 0b10 outpost 16033 | -5/Proximity Caves | Spotter reported a threat 16097 | -5/Proximity Caves | Spotter reported a threat 16115 | -5/Proximity Caves | Learned Factory stockpile data 16153 | -5/Proximity Caves | Discovered exit to Factory (range 8) 16197 | -5/Proximity Caves | Entered Factory 16197 | -5/Factory | Evolved 2 slots: Utility x1, Weapon x1 16198 | -5/Factory | Identified exit to Upper Caves 16199 | -5/Factory | Identified exit to Factory 16202 | -5/Factory | Loaded intel: 26 terminal locations 16441 | -5/Factory | Build established: Derelict-Mutant 16497 | -5/Factory | Search patrols dispatched 16813 | -5/Factory | Build established: Derelict-Skirmisher 17122 | -5/Factory | Build established: Hacker-Skirmisher 17255 | -5/Factory | Entered Upper Caves 17447 | -5/Upper Caves | Learned 4 Factory zone layouts 17961 | -5/Upper Caves | Attracted the attention of an 0b10 outpost 17968 | -5/Upper Caves | Discovered new exit (range 9) 17970 | -5/Upper Caves | Attracted the attention of an 0b10 checkpoint 17973 | -5/Upper Caves | Identified exit to Upper Caves 17974 | -5/Upper Caves | Entered another Upper Caves area 17978 | -5/Upper Caves | Ambushed by wild Derelicts 18047 | -5/Upper Caves | Destroyed 9 combat bots 18115 | -5/Upper Caves | Discovered exit to Factory (range 11) 18338 | -5/Upper Caves | Learned Factory garrison access intel 18368 | -5/Upper Caves | Learned Research trap positions 18369 | -5/Upper Caves | A Commander dispatched an escort 18426 | -5/Upper Caves | Discovered new exit (range 5) 18429 | -5/Upper Caves | Identified exit to Warlord 18431 | -5/Upper Caves | Entered Warlord 18462 | -5/Warlord | Discovered new exit (range 8) 18468 | -5/Warlord | Identified exit to Proximity Caves 18632 | -5/Warlord | Learned location of Quarantine (-2) 18632 | -5/Warlord | Learned Testing emergency access door positions 18632 | -5/Warlord | Learned 4 Research zone layouts 18632 | -5/Warlord | Learned 4 Command zone layouts 18633 | -5/Warlord | Learned Research security intel 18738 | -5/Warlord | Received a Watcher feed algorithm from an ecstatic Tinkerer 18765 | -5/Warlord | Visited the Vortex Lab 18785 | -5/Warlord | Warlord's base attacked by MAIN.C 18926 | -5/Warlord | Met Warlord 18933 | -5/Warlord | Opened Warlord's prototype stash 18947 | -5/Warlord | Found Prototype Hackware 18947 | -5/Warlord | Identified System Mapper 18952 | -5/Warlord | Found Prototype Processor 18953 | -5/Warlord | Identified Exp. Armor Integrity Analyzer 18958 | -5/Warlord | Found Prototype Processor 18958 | -5/Warlord | Identified Exp. Targeting Computer 19135 | -5/Warlord | Warlord forces counterattacked 19172 | -5/Warlord | Spotted Executioner 19181 | -5/Warlord | Spotted Executioner 19188 | -5/Warlord | Destroyed Executioner 19201 | -5/Warlord | P-70 Sage assimilated allied RG-8MB(l) 19214 | -5/Warlord | Spotted Striker 19215 | -5/Warlord | Spotted Executioner 19225 | -5/Warlord | Spotted Executioner 19225 | -5/Warlord | Destroyed Striker 19319 | -5/Warlord | Lost 30 allies 19364 | -5/Warlord | Spotted B-86 Titan 19460 | -5/Warlord | Warlord base infiltrated, sounded retreat 19619 | -5/Warlord | Spotted Executioner 19633 | -5/Warlord | Spotted Striker 19638 | -5/Warlord | Spotted Executioner 19639 | -5/Warlord | Build established: Hacker-Tank 19665 | -5/Warlord | Spotted Striker 19708 | -5/Warlord | Spotted Executioner 19712 | -5/Warlord | Spotted Executioner 19716 | -5/Warlord | Spotted B-86 Titan 19719 | -5/Warlord | Spotted Executioner 19733 | -5/Warlord | Lost 22 allies 19736 | -5/Warlord | Core integrity fell below 50% 19741 | -5/Warlord | Self-destructed Last Messages --------------- 19735_ Penetrated by Slug. 19735_ Cmb. Gravmag System destroyed. 19735_ Slug penetrates Earth. 19735_ S-27 Virus destroyed. 19737_ The unstable cave ceiling collapses. 19737_ 17 Matter crushed. 19737_ Penetrated by Slug. 19737_ Cmb. Gravmag System destroyed. 19737_ Slug penetrates Earth. 19738_ Adv. Heat Sink destroyed. 19738_ Penetrated by Slug. 19738_ Slug penetrates H-66 Slayer. 19739_ Penetrated by Slug. 19739_ Lgt. Nuclear Core destroyed. 19739_ Slug penetrates Earth. 19740_ G-50 Soldier destroyed. 19740_ Executioner suffers critical hit (Burn). 19740_ Penetrated by Slug. 19740_ Slug penetrates Earth. 19740_ Penetrated by Slug. Map ----- +----------------------------------------------------+ | ???????????????????????????# """ #??#! """# | | ###############????????????# #??#! X""# | | """"""" + ^ #????????????# #??#! ""# | | """""" + ^ #????????????##########+###?#" X !!# | | " ## ^ #?????????????????# #?##"""!!# | | " ## #?????????????????# """ #??####### | | " ## #?????????????????#^ """ #????????? | | " ## #?????????????????# """ #????????? | | " "## #?????????????????# """ #????????? | | "## #?????????????????# """ #########? | | X // "## #?????????????????# #"""""""#? | | " """"## #?????????????????# #"""X"""#? | | """" """"## #?????????????????# #"X X"#? | | """ """"## #?????????????????# #"" ""#? | | """ """## ##????????????????# #"" ""#? | | ########### X#???????#######??#####+##### ###? | | ??######### ##???##?## # ##???# ###+#####? | | ??# ## ###??# ## #*%#??## #? | | ??# "" ## ; ### # # # ##?# #? | | ??# "" # ## ;;#; # #?## #? | | ??# """ ;## ; s #???#=! ## | | ??# "" # ; h Y #??##%! ## " | | ??# " ; =*%[ #??#=!= " | | ### " # ;*%!![%g/ ### #! " !!= | | #"" # # =%! [%!!E= #! [=!%*==]] | | #! [%!= ###* * !@g%===[*=! % p p%*=[!*![% | | "%[ =!!![ ;==%= Eg;=[=%==% !==[=%!%[ | | %"! ]%*%= = # %%=! !]g==E%BB=[[% ! [!==!==% | | " *=!!![ !!*!![%[*%%[=*!!BB%==* %= [%[!]/% | | # [! *!! %===!==!%![%=%*=%!! * " =*=*%!! | | ####"" !*%/ ==%=*%*%%!!!!=*%==!= = " == * ! | | #??## *=%%[%*[%==!/%![!%%!*[=/ =% " = | | #???## " %!*!*==% !=%%%%===!=]===[ ! "# | | #????##" *!!!% =**%=!![! ===!!!*! ### | | #?????## !=**#!= ! # #!!!*!!/ ## =###?## ## | | #?????#" % =!% ![## ##[*[= ##! ##### #? | | #?????## = ## ""##### # #? | | #??????# ######""%""#???# # #? | | #??????# #????#" ! "#???# # #? | | #?????#" #????#"""""#???# + #? | | #?????#########????#"""""#???# % # #? | | #??????????????????#######???############## ## | | #??????########?????????????????????### ## # | | ######## #?????????????????????# # | | # ## #?????????????????????# ^ # | | # ## #?????????????????????# | | + ## """" #????????????????###### ## # | | # ## """" #??############### # ######## | | # ## """" #??# X# * ==## # ## | | # ## """" #??# =## # ## | +----------------------------------------------------+ Best States ------------- Heat Dissipation 59 Energy Generation 18 Energy Capacity 310 Matter Stores 300 Matter Capacity 300 Sight Range 16 Robot Scan Range 20 Terrain Scan Density 10 Jamming Range 14 Armor Coverage 675 Evasion (%) 60 Targeting Accuracy 12 Recoil Reduction 2 Offensive Hacking 32 Defensive Hacking 10 Item Schematics ----------------- Adv. Signal Interpreter | -6/Factory | Hacked Combat Drone Bay | -6/Data Miner | Free Lgt. Regenerative Plating | -6/Data Miner | Free Cld. Gravmag System | -6/Data Miner | Free Prc. Matter Filter | -6/Data Miner | Free Mni. Smartbomb Launcher | -6/Data Miner | Free Impulse Thruster | -6/Data Miner | Free Lrn. Terrain Scanner | -6/Data Miner | Free Phase Gun | -6/Data Miner | Free Field Propulsion Drive | -6/Data Miner | Free Railgun | -6/Data Miner | Free Graphene Brace | -6/Data Miner | Free Com. HERF Cannon | -6/Data Miner | Free Robot Schematics ------------------ A-15 Conveyor | -6/Data Miner | Free B-48 Gladiator | -6/Data Miner | Free M-22 Extractor | -6/Data Miner | Free R-10 Processor | -6/Data Miner | Free B-60 Warrior | -6/Data Miner | Free G-67 Veteran | -6/Data Miner | Free Fabricated ------------ Adv. Signal Interpreter | x2 | -6/Factory Alien Tech Used ----------------- None Achievements -------------- Explorer Reappropriation Challenges ------------ None Game ------ Seed LinkedTiamatAmplifier Manual? 0 Play Time 03:06:54 Cumulative 80.0 hours Start 2025.03.02 @ 17:47:33 End 2025.03.03 @ 19:00:54 Sessions 7 Manual Loads 0 Difficulty Rogue Special Mode None Game No. 98 Rogue 91 Adventurer 0 Explorer 7 Win Type - Total 2 Types 2/0/0/0/0/0/0/0/0 Lore% 36 Gallery% 37 Achievement% 36 Wizard Run 0 Options --------- Layout 0 ASCII 0 Keyboard 0 Movement Mouse Keybinds 0 Fullscreen 1 Font 24/Smallcaps Map View 76x50 Zoom Use 0% Tactical HUD 1 Map Filters NONE Filters NONE Steam 1 RUN: e609e9c4-3ab3-4abe-9cc6-2ed9376f380f